bitfinex/quotes_ETHUSD_20220123
["timestamp","ask_amount","ask_price","bid_price","bid_amount"]
[1642942838905,1.17522725,2497.2,2496.4,0.01]
[1642942839105,1.17522725,2497.2,2496.5,1.26910594]
[1642942839106,0.3,2497.1,2496.5,1.26910594]
[1642942839409,1.3,2497.2,2496.5,1.26910594]
[1642942839660,23.43,2496.9,2496.4,0.01]
[1642942839848,0.17522725,2496.9,2496.4,0.01]
[1642942840045,2.38122725,2497.2,2496.4,0.01]
[1642942840247,1.206,2497.2,2496.4,0.01]
[1642942840646,1.206,2497.2,2497.1,1.25107902]
[1642942840850,0.17522725,2497.4,2497.1,1.25107902]
[1642942841051,0.17522725,2497.4,2496.4,0.01]
[1642942841256,0.17522725,2497.4,2496.5,3.40705532]
[1642942841450,0.17522725,2497.4,2496.8,1.16730765]
[1642942842650,1.17522725,2497.4,2496.8,1.16730765]
[1642942842850,1.17522725,2497.4,2496.8,2.34886731]
[1642942843397,1.17522725,2497.4,2496.8,1.16730765]
[1642942843999,0.06099172,2497.6,2496.8,1.16730765]
[1642942844407,0.06099172,2497.6,2497.2,1.5508352]
[1642942844909,0.06099172,2497.6,2497.3,1.45211814]
[1642942847649,0.06099172,2497.6,2497.2,1.5508352]
[1642942848449,0.03049586,2497.6,2497.2,1.5508352]
[1642942849350,0.03049586,2497.6,2497.5,4.19707458]
[1642942850154,0.03049586,2497.6,2497.5,1.54707458]
[1642942850354,0.03049586,2497.6,2497.2,1.5508352]
[1642942851808,0.03049586,2497.6,2497.1,2.02586781]
[1642942852209,0.03049586,2497.6,2497.1,0.8792]
[1642942853411,1.49154979,2497.6,2497.1,0.8792]
[1642942853611,0.3644075,2497.6,2497.1,0.8792]
[1642942853816,0.6644075,2497.6,2497.1,0.8792]
[1642942854015,0.3,2497.5,2497.1,0.8792]
[1642942854212,0.33772247,2497.5,2497.1,0.8792]
[1642942854512,0.63049586,2497.6,2497.1,0.8792]
[1642942854749,0.33049586,2497.6,2497.1,0.8792]
[1642942854950,0.17522725,2497.5,2497.1,0.0001]
[1642942855155,23.43,2497.4,2497.1,0.0001]
[1642942855549,1.0,2497.3,2497.1,0.0001]
[1642942855956,0.0999,2497.1,2496.7,1.35757425]
[1642942856158,1.17522725,2497.2,2496.7,1.35757425]
[1642942856355,0.3,2497.1,2496.7,1.35757425]
[1642942856856,0.3,2497.5,2496.7,4.73325616]
[1642942857058,1.13747527,2497.6,2497.4,1.48534753]
[1642942857257,0.13747527,2497.6,2497.4,1.48534753]
[1642942857661,0.13747527,2497.6,2496.5,3.57430759]
[1642942857857,0.13747527,2497.6,2496.4,3.66698135]
[1642942858059,0.13747527,2497.6,2496.5,3.40668867]
[1642942858503,0.26207906,2497.5,2496.4,3.6544]
[1642942858702,0.26207906,2497.5,2496.6,2.80316438]
[1642942858901,23.43,2497.4,2496.6,2.80316438]
[1642942859105,4.91583084,2497.3,2496.6,2.80316438]
[1642942859303,5.21583084,2497.3,2496.6,2.80316438]
[1642942859501,5.25104691,2497.3,2496.6,2.80316438]
[1642942859702,5.33789872,2497.3,2496.6,2.80316438]
[1642942860104,5.30268265,2497.3,2496.6,2.80316438]
[1642942860406,1.47522725,2497.3,2496.6,2.80316438]
[1642942860603,0.30529423,2497.2,2496.6,2.80316438]
[1642942861606,0.30529423,2497.2,2496.4,3.6544]
[1642942861809,0.30529423,2497.2,2496.4,0.01]
[1642942861810,0.26207906,2497.1,2496.4,0.01]
[1642942862008,0.30529423,2497.0,2496.4,0.01]
[1642942862452,0.17522725,2496.9,2496.4,0.01]
[1642942862654,0.3107727,2496.9,2496.4,0.01]
[1642942863054,0.3107727,2496.8,2496.4,0.01]
[1642942863251,0.3107727,2496.8,2496.6,1.48563333]
[1642942864358,0.3,2496.9,2496.6,1.48563333]
[1642942864557,0.03030538,2497.2,2496.6,1.48563333]
[1642942864760,0.10697941,2497.3,2496.6,1.48563333]
[1642942865158,0.17522725,2497.2,2496.6,1.48563333]
[1642942865760,0.10697941,2497.3,2496.5,1.38588869]
[1642942866300,0.10697941,2497.3,2497.1,1.13091869]
[1642942867002,0.10697941,2497.3,2497.2,1.35420858]
[1642942867201,0.10697941,2497.3,2496.4,3.9787989]
[1642942867400,0.10697941,2497.3,2496.4,0.01]
[1642942868603,0.10697941,2497.3,2496.9,1.56074878]
[1642942869671,0.10697941,2497.3,2497.2,1.16483276]
[1642942870263,0.10697941,2497.3,2496.9,1.56074878]
[1642942871067,0.10697941,2497.3,2496.4,0.01]
[1642942871368,0.10697941,2497.3,2496.8,1.23047558]
[1642942872572,0.10697941,2497.3,2496.6,1.3252109]
[1642942873803,0.10697941,2497.3,2496.7,1.39100872]
[1642942874608,0.10697941,2497.3,2497.0,1.17916862]
[1642942875307,0.10697941,2497.3,2496.7,1.39100872]
[1642942876208,0.10697941,2497.3,2497.1,1.2954126]
[1642942876508,0.10697941,2497.3,2496.7,1.39100872]
[1642942877957,0.10697941,2497.3,2496.8,1.19127808]
[1642942880769,0.10697941,2497.3,2496.7,1.39100872]
[1642942883013,0.10697941,2497.3,2496.9,1.29361139]
[1642942883412,0.10697941,2497.3,2496.7,1.39100872]
[1642942884659,0.10697941,2497.3,2496.8,1.38728096]
[1642942885660,0.10697941,2497.3,2496.4,0.01]
[1642942885859,0.10697941,2497.3,2496.4,0.00901509]
[1642942886063,4.0572351,2497.3,2496.4,0.00901509]
[1642942886469,1.0,2497.2,2496.4,0.00901509]
[1642942886866,1.0,2497.2,2497.0,1.43842041]
[1642942887072,0.88220666,2497.3,2497.0,1.43842041]
[1642942887667,0.58220666,2497.3,2497.0,1.43842041]
[1642942887867,0.28220666,2497.3,2497.0,1.43842041]
[1642942888268,0.40122218,2497.2,2497.0,1.43842041]
[1642942888512,0.40122218,2497.2,2496.7,1.83226164]
[1642942888713,3.4837626,2497.1,2496.7,0.45]
[1642942888913,0.40122218,2497.0,2496.7,0.45]
[1642942889116,1.40122218,2497.0,2496.7,0.45]
[1642942889313,3.97522725,2496.8,2496.7,0.45]
[1642942889512,4.36362489,2496.8,2496.7,0.45]
[1642942889713,0.40122218,2496.8,2496.7,0.45]
[1642942890512,0.41189255,2496.8,2496.7,0.45]
[1642942892155,4.32469014,2496.8,2496.7,0.45]
[1642942892356,0.71189255,2496.8,2496.7,0.45]
[1642942892554,1.71189255,2496.8,2496.7,0.45]
[1642942892755,0.71189255,2496.8,2496.7,0.45]
[1642942892955,1.74395786,2496.8,2496.7,0.45]
[1642942893159,5.18358059,2496.8,2496.7,0.45]
[1642942893356,3.25018511,2496.8,2496.7,0.45]
[1642942893756,5.9181198,2496.8,2496.7,0.45]
[1642942893957,9.61770914,2496.8,2496.4,0.00901509]
[1642942894163,9.61770914,2496.8,2496.0,0.08]
[1642942894164,7.45,2496.6,2496.0,0.08]
[1642942894361,4.56171815,2496.5,2496.0,0.08]
[1642942894558,23.85370521,2496.4,2496.0,0.0001]
[1642942894764,0.73627956,2496.3,2495.3,0.005]
[1642942894964,23.43,2496.1,2495.3,0.005]
[1642942895164,1.42370521,2496.0,2495.3,1.48585321]
[1642942895463,0.42370521,2495.9,2495.3,1.48585321]
[1642942895662,0.72370521,2495.9,2495.3,0.005]
[1642942895910,0.59893246,2495.8,2495.3,0.005]
[1642942896111,0.42370521,2495.7,2495.3,0.005]
[1642942896513,1.02370521,2495.7,2495.3,0.005]
[1642942896711,0.41856303,2495.6,2495.4,1.13924176]
[1642942897312,0.41856303,2495.6,2495.3,0.005]
[1642942898511,0.44905889,2495.6,2495.3,1.14782301]
[1642942899518,0.5560383,2495.6,2495.3,1.14782301]
[1642942899751,0.34107552,2495.5,2495.3,1.14782301]
[1642942900052,0.34107552,2495.5,2495.3,0.005]
[1642942900552,0.16797113,2495.6,2495.3,0.005]
[1642942901555,0.03049586,2495.5,2495.3,0.005]
[1642942902357,3.42522725,2495.4,2495.3,0.005]
[1642942902560,5.02522725,2495.4,2495.3,0.005]
[1642942902758,5.06472309,2495.4,2495.3,0.005]
[1642942903161,28.49472309,2495.4,2495.3,0.005]
[1642942903705,2.19202309,2495.4,2495.3,0.005]
[1642942903905,2.15252725,2495.4,2495.3,0.005]
[1642942904105,1.15252725,2495.4,2495.3,0.005]
[1642942904714,0.77522725,2495.4,2495.3,0.005]
[1642942905809,0.81003255,2495.4,2495.3,0.005]
[1642942906213,0.77522725,2495.4,2495.3,0.005]
[1642942906413,0.17522725,2495.4,2495.3,0.005]
[1642942906613,0.27495054,2495.5,2495.3,0.005]
[1642942906812,0.30664942,2495.5,2495.4,1.54468065]
[1642942907657,0.30664942,2495.5,2495.4,2.9423115]
[1642942907857,0.41483185,2495.5,2495.4,2.9423115]
[1642942908857,0.52301428,2495.5,2495.4,2.9423115]
[1642942909862,0.55471316,2495.5,2495.4,2.9423115]
[1642942910914,0.55591618,2495.5,2495.4,2.9423115]
[1642942911322,0.55591618,2495.5,2495.3,0.005]
[1642942911920,0.58415958,2495.5,2495.3,0.005]
[1642942912524,0.47718017,2495.5,2495.3,0.005]
[1642942912923,0.50542357,2495.5,2495.3,0.005]
[1642942914021,0.50542357,2495.5,2494.7,3.0957]
[1642942914022,0.53366697,2495.5,2494.7,3.0957]
[1642942914422,0.53366697,2495.5,2494.9,1.17516425]
[1642942914654,4.01360839,2495.5,2494.9,1.17516425]
[1642942914856,1.0,2495.4,2494.9,1.17516425]
[1642942915063,3.42705294,2495.3,2494.9,1.17516425]
[1642942915259,3.42705294,2495.3,2494.7,3.0957]
[1642942915460,3.42705294,2495.3,2494.4,6.25729997]
[1642942915461,1.0,2495.2,2494.4,6.25729997]
[1642942915662,1.0,2495.2,2494.4,3.751]
[1642942915663,3.77162809,2495.1,2494.4,3.751]
[1642942915862,3.77162809,2495.1,2494.3,7.5862]
[1642942915863,4.07162809,2495.1,2494.3,7.5862]
[1642942916066,1.0,2495.0,2494.3,3.7395]
[1642942916266,3.46535145,2494.9,2494.3,4.98624877]
[1642942916662,1.0,2494.8,2494.3,2.58049122]
[1642942916862,1.0,2494.8,2494.7,1.31538301]
[1642942917062,0.3,2495.1,2494.7,1.31538301]
[1642942917063,1.30120302,2495.1,2494.7,1.31538301]
[1642942917263,0.02704038,2495.0,2494.7,1.31538301]
[1642942917665,0.13401979,2495.0,2494.7,1.31538301]
[1642942918717,0.2409992,2495.0,2494.7,1.31538301]
[1642942919211,0.2692426,2495.0,2494.7,1.31538301]
[1642942919813,0.37622201,2495.0,2494.7,1.31538301]
[1642942920317,0.40446541,2495.0,2494.7,1.61538301]
[1642942920516,0.40446541,2495.0,2494.8,0.01279724]
[1642942920517,0.02826541,2495.0,2494.8,0.01279724]
[1642942920715,7.69e-06,2495.2,2495.0,0.08479623]
[1642942920915,7.69e-06,2495.2,2495.1,1.35075766]
[1642942921521,0.02825109,2495.2,2495.0,0.08479623]
[1642942923561,0.02825109,2495.2,2495.1,1.14047048]
[1642942925665,0.02825109,2495.2,2495.1,1.09047048]
[1642942926121,0.1352305,2495.2,2495.1,1.09047048]
[1642942927123,0.23212773,2495.2,2495.1,1.09047048]
[1642942927324,0.69593016,2495.5,2495.2,4.5]
[1642942927534,0.03049586,2495.7,2495.5,6.85]
[1642942927923,0.03049586,2495.7,2495.5,7.45]
[1642942928127,0.03049586,2495.7,2495.6,6.16660263]
[1642942928327,0.02704038,2495.9,2495.7,5.89774518]
[1642942928524,0.03049586,2497.0,2495.7,1.49774518]
[1642942928724,0.08685181,2496.8,2495.7,1.49774518]
[1642942929228,1.03049586,2497.0,2495.7,5.0367849]
[1642942929229,4.038e-05,2496.4,2495.7,5.0367849]
[1642942929426,0.03049586,2497.0,2495.7,2.09774518]
[1642942929693,0.03049586,2497.0,2496.1,1.53674036]
[1642942929887,0.03049586,2497.0,2496.2,3.48151866]
[1642942930088,0.03049586,2497.0,2496.8,1.39560951]
[1642942930289,0.03049586,2497.0,2496.0,0.11230389]
[1642942930489,0.03049586,2497.0,2496.0,0.1]
[1642942931495,0.03049586,2497.0,2496.5,1.20215493]
[1642942933412,0.03049586,2497.0,2496.4,1.4201548]
[1642942935411,0.03049586,2497.0,2496.5,1.3682807]
[1642942938869,0.25143409,2497.4,2496.5,1.3682807]
[1642942939868,0.13747527,2496.9,2496.5,1.3682807]
[1642942941032,0.10697941,2496.9,2496.5,1.3682807]
[1642942941728,0.10697941,2496.9,2496.0,5.0131]
[1642942942632,0.1499,2496.8,2496.4,1.49466111]
[1642942943034,0.10697941,2496.9,2496.4,1.49466111]
[1642942944855,0.01230007,2497.3,2496.4,1.49466111]
[1642942945056,0.17522725,2497.4,2496.4,1.49466111]
[1642942945461,0.23675181,2497.3,2496.9,1.50458686]
[1642942945864,0.1499,2497.3,2496.9,1.50458686]
[1642942946059,0.23675181,2497.3,2496.9,1.50458686]
[1642942946460,0.08685181,2497.3,2496.9,1.50458686]
[1642942946862,0.47522725,2497.4,2496.9,1.50458686]
[1642942947061,0.08685181,2497.3,2496.9,1.50458686]
[1642942948428,0.08685181,2497.3,2496.4,5.025]
[1642942949417,0.08685181,2497.3,2496.8,1.11804337]
[1642942949819,0.08685181,2497.3,2496.8,1.11712198]
[1642942950220,0.47522725,2497.4,2496.8,1.11712198]
[1642942950418,0.03465891,2497.6,2496.8,1.11712198]
[1642942950619,0.08685181,2497.4,2496.8,1.11712198]
[1642942950820,0.37819997,2497.7,2496.8,1.11712198]
[1642942951029,0.07819997,2497.7,2496.8,1.11712198]
[1642942951527,0.22902136,2497.7,2497.3,1.26137475]
[1642942951725,0.31587317,2497.7,2497.0,1.41288441]
[1642942951925,0.17522725,2497.6,2496.4,5.025]
[1642942952365,0.08685181,2497.5,2496.4,5.025]
[1642942952768,0.17522725,2497.4,2496.3,4.4273448]
[1642942952968,1.23735018,2497.2,2496.3,4.4273448]
[1642942953168,0.33161525,2497.2,2496.3,4.4273448]
[1642942953367,0.38685181,2497.1,2496.3,4.4273448]
[1642942953769,0.08685181,2497.0,2496.3,4.4273448]
[1642942955671,0.08685181,2497.0,2496.3,3.011]
[1642942955907,0.08685181,2497.0,2496.0,0.1]
[1642942955908,0.17522725,2496.9,2496.0,0.1]
[1642942956112,1.17522725,2496.9,2495.5,5.1491]
[1642942956314,1.26207906,2496.9,2495.5,5.1491]
[1642942956515,1.86207906,2496.9,2495.5,5.1491]
[1642942956712,1.89324149,2496.9,2496.0,1.36042168]
[1642942958314,1.90024439,2496.9,2496.0,1.36042168]
[1642942958516,1.86207906,2496.9,2496.0,1.36042168]
[1642942958713,1.86207906,2496.9,2495.8,1.61687704]
[1642942958916,24.32262623,2496.9,2495.8,1.61687704]
[1642942959116,1.0,2496.8,2495.8,1.61687704]
[1642942959313,23.43,2496.7,2495.8,1.61687704]
[1642942959758,1.0,2496.6,2495.8,1.61687704]
[1642942959953,1.3,2496.6,2495.8,1.61687704]
[1642942960153,1.6,2496.6,2495.8,1.61687704]
[1642942960354,1.63717057,2496.6,2495.8,1.61687704]
[1642942960554,1.63717057,2496.6,2495.7,3.9178]
[1642942960756,1.63717057,2496.6,2495.5,5.1491]
[1642942960757,1.89924963,2496.6,2495.5,5.1491]
[1642942960960,1.90199927,2496.6,2495.7,1.40506354]
[1642942961359,1.90199927,2496.6,2495.5,5.1491]
[1642942961666,1.90199927,2496.6,2495.2,1.39381449]
[1642942962458,23.43,2496.5,2495.2,1.39381449]
[1642942962659,23.43,2496.3,2495.3,1.15082204]
[1642942962860,0.17522725,2496.2,2495.3,1.15082204]
[1642942963059,1.26207906,2496.2,2495.3,1.15082204]
[1642942963511,1.56207906,2496.2,2495.3,1.15082204]
[1642942963810,1.60153798,2496.2,2495.3,1.15082204]
[1642942964216,1.60153798,2496.2,2495.2,1.38104776]
[1642942964217,1.47522725,2496.2,2495.2,1.38104776]
[1642942964408,1.51108621,2496.2,2495.2,1.38104776]
[1642942964610,1.59793802,2496.2,2495.2,1.38104776]
[1642942965010,25.02793802,2496.2,2495.2,1.38104776]
[1642942965210,23.43,2496.1,2495.2,1.38104776]
[1642942965411,1.0,2496.0,2495.0,0.08479623]
[1642942965614,0.17522725,2496.0,2495.0,0.08479623]
[1642942965813,0.08685181,2495.9,2495.0,0.08479623]
[1642942966212,0.17522725,2495.8,2495.0,0.08479623]
[1642942966610,0.26207906,2495.8,2495.0,0.08479623]
[1642942966816,0.26207906,2495.8,2495.1,1.50451868]
[1642942967158,0.60121785,2495.8,2495.1,1.50451868]
[1642942970911,24.03121785,2495.8,2495.1,1.50326565]
[1642942971111,1.0,2495.7,2495.1,1.50326565]
[1642942971510,0.56207906,2495.8,2495.5,1.470703]
[1642942971711,8.498,2496.2,2495.5,1.470703]
[1642942971914,3.6077,2496.2,2495.5,1.470703]
[1642942972112,3.6077,2496.2,2495.1,0.01252188]
[1642942972113,0.17522725,2496.2,2495.1,0.01252188]
[1642942972710,23.43,2496.1,2495.1,0.01252188]
[1642942972910,0.17522725,2496.0,2495.0,1.41970634]
[1642942973112,1.17522725,2496.0,2495.0,2.63345464]
[1642942974312,24.60522725,2496.0,2495.0,0.08479623]
[1642942974661,23.43,2495.8,2495.0,0.08479623]
[1642942974856,0.17522725,2495.7,2495.0,0.08479623]
[1642942975054,1.26207906,2495.7,2495.0,0.08479623]
[1642942975255,0.01210302,2495.6,2495.0,0.08479623]
[1642942975456,23.44210302,2495.6,2495.0,0.08479623]
[1642942975656,1.0,2495.5,2495.0,0.08479623]
[1642942975862,0.17522725,2495.4,2495.0,0.08479623]
[1642942976663,0.51335986,2495.4,2495.0,0.08479623]
[1642942977461,1.51335986,2495.4,2495.0,0.08479623]
[1642942978626,1.51335986,2495.4,2494.6,1.07252286]
[1642942978627,0.0664568,2495.2,2494.6,1.07252286]
[1642942980028,0.0664568,2495.2,2494.6,1.02252286]
[1642942980233,0.0664568,2495.2,2494.5,1.13458024]
[1642942980735,0.0257568,2495.2,2494.5,1.13458024]
[1642942981236,0.0257568,2495.2,2494.7,1.40135151]
[1642942981634,0.20098405,2495.2,2494.4,0.23819997]
[1642942982032,0.0257568,2495.2,2494.4,0.23819997]
[1642942982666,0.235,2495.2,2494.7,2.74763146]
[1642942983068,1.535,2495.2,2494.7,2.74763146]
[1642942983370,1.835,2495.2,2494.4,0.23819997]
[1642942983568,3.39564773,2495.1,2494.4,0.23819997]
[1642942983972,1.0,2495.0,2494.4,0.03819997]
[1642942984173,0.3,2495.0,2494.4,0.03819997]
[1642942984371,0.535,2495.2,2494.7,3.07579494]
[1642942984572,3.7082217,2495.1,2494.4,0.03819997]
[1642942984775,3.4082217,2495.1,2494.4,0.03819997]
[1642942985077,1.6,2495.0,2494.4,0.03819997]
[1642942985677,1.6,2495.0,2494.6,1.31809327]
[1642942985902,1.6,2495.0,2494.4,1.42787955]
[1642942986107,3.34446958,2494.9,2494.4,1.42787955]
[1642942986306,1.3,2495.0,2494.4,1.42787955]
[1642942986307,1.6,2495.0,2494.4,1.42787955]
[1642942986511,1.3,2494.8,2494.4,1.42787955]
[1642942986707,0.3,2494.8,2494.4,1.42787955]
[1642942986908,0.6,2495.0,2494.5,1.0960915]
[1642942987109,0.3,2494.9,2494.5,1.0960915]
[1642942987306,3.35117156,2495.1,2494.4,1.42787955]
[1642942987307,3.39140001,2495.0,2494.4,1.42787955]
[1642942987507,4.99140001,2495.0,2494.4,1.42787955]
[1642942987713,3.99140001,2495.0,2494.4,0.03819997]
[1642942987906,1.0,2494.9,2494.4,0.03819997]
[1642942988109,3.34267183,2494.8,2494.1,4.2626]
[1642942988309,3.94267183,2494.8,2494.1,4.2626]
[1642942988508,1.3,2494.7,2494.3,1.10512841]
[1642942988710,1.3,2494.7,2494.3,2.33815415]
[1642942989308,0.3,2494.7,2494.3,1.23302574]
[1642942989508,3.74875634,2494.9,2494.0,3.7649]
[1642942989960,1.0,2494.8,2494.0,3.7649]
[1642942990161,1.3,2494.8,2494.0,3.7649]
[1642942990463,0.22657819,2494.6,2494.2,1.14250558]
[1642942990660,0.3,2494.8,2494.2,2.22999061]
[1642942990860,0.3,2494.9,2494.2,2.22999061]
[1642942991065,1.0,2495.0,2494.2,2.22999061]
[1642942991066,1.6,2495.0,2494.2,2.22999061]
[1642942991466,0.2092432,2495.2,2494.2,2.22999061]
[1642942991766,0.13819997,2495.7,2494.2,2.52999061]
[1642942991966,0.17522725,2495.6,2494.2,1.08748503]
[1642942992370,0.26207906,2495.6,2494.2,1.08748503]
[1642942992665,4.01283659,2495.6,2494.2,1.08748503]
[1642942992864,3.75075753,2495.6,2494.2,1.08748503]
[1642942993068,3.75075753,2495.6,2495.1,1.30016421]
[1642942993507,3.75075753,2495.6,2494.4,1.2049]
[1642942994114,1.0,2495.5,2494.4,1.2049]
[1642942994413,2.34029847,2495.4,2494.4,1.2049]
[1642942994616,2.67844384,2495.4,2494.4,1.2049]
[1642942995113,1.0,2495.3,2494.8,1.43788821]
[1642942995514,1.3,2495.3,2494.4,1.2049]
[1642942995719,2.61448916,2495.2,2494.4,1.2049]
[1642942995913,1.3,2495.3,2494.4,1.2049]
[1642942995914,0.33094527,2495.3,2494.4,1.2049]
[1642942996113,3.13120091,2495.2,2494.4,1.2049]
[1642942996315,0.42406094,2495.2,2494.4,1.2049]
[1642942996516,1.0,2495.1,2494.4,1.2049]
[1642942996715,0.03713115,2495.1,2494.4,1.2049]
[1642942996915,0.38685181,2495.2,2494.3,1.1397632]
[1642942997175,0.08685181,2495.2,2494.3,1.1397632]
[1642942998377,0.08685181,2495.2,2494.7,1.45901705]
[1642942998574,0.3,2495.3,2494.7,1.45901705]
[1642942998772,1.26207906,2495.6,2495.1,1.4687273]
[1642942998773,0.08685181,2495.6,2495.1,1.4687273]
[1642942998974,0.03819997,2496.0,2495.1,1.4687273]
[1642942999374,0.03819997,2496.0,2495.2,3.1963]
[1642942999574,0.21342722,2496.0,2495.2,3.1963]
[1642943000574,0.22657819,2495.7,2495.2,3.1963]
[1642943000773,0.22657819,2495.7,2495.1,1.4687273]
[1642943001215,0.5481499,2496.0,2495.1,1.4687273]
[1642943001418,0.81342722,2496.0,2495.1,1.4687273]
[1642943001618,0.51342722,2496.0,2495.1,1.4687273]
[1642943001819,0.3,2496.0,2495.1,4.80345656]
[1642943002019,0.47522725,2496.2,2495.1,1.4687273]
[1642943002221,0.47522725,2496.2,2495.8,1.22446439]
[1642943002222,0.40180544,2496.2,2495.8,1.22446439]
[1642943002418,0.22657819,2496.2,2495.8,1.22446439]
[1642943003021,0.22657819,2496.2,2495.2,7.6969]
[1642943004223,23.83180544,2496.2,2495.3,1.19625384]
[1642943004673,1.0,2496.1,2495.3,1.19625384]
[1642943004870,1.3,2496.1,2495.3,1.19625384]
[1642943005269,0.17522725,2496.0,2495.3,1.19625384]
[1642943005870,0.17522725,2496.0,2495.7,1.52642255]
[1642943006281,0.3,2496.1,2495.7,1.52642255]
[1642943006477,0.6,2496.2,2495.7,1.52642255]
[1642943006677,1.6,2496.3,2495.7,1.52642255]
[1642943006879,1.63763381,2496.3,2495.2,3.8933]
[1642943007077,0.17522725,2496.2,2495.2,3.8933]
[1642943007679,0.17522725,2496.2,2495.2,3.89224289]
[1642943007882,0.22657819,2495.9,2495.5,1.22366121]
[1642943008080,0.47522725,2496.2,2495.5,1.22366121]
[1642943008517,0.17522725,2496.2,2495.5,1.22366121]
[1642943008718,0.08685181,2496.1,2495.5,1.22366121]
[1642943009316,0.22657819,2496.0,2495.5,1.22366121]
[1642943011018,0.31343,2496.0,2495.5,1.22366121]
[1642943011219,0.03925313,2496.3,2495.5,1.22366121]
[1642943011425,0.08685181,2496.3,2495.5,1.22366121]
[1642943011619,0.13819997,2496.7,2495.5,1.52366121]
[1642943011822,0.13819997,2496.7,2495.6,3.1473]
[1642943012270,0.31343,2496.6,2496.1,1.15879395]
[1642943012469,0.31343,2496.6,2495.8,1.22667328]
[1642943012670,0.08685181,2496.5,2495.8,1.22667328]
[1642943013869,0.08685181,2496.5,2495.9,1.55515501]
[1642943013870,0.22657819,2496.4,2495.9,1.55515501]
[1642943014074,0.38685181,2496.5,2495.9,1.55515501]
[1642943014270,0.08685181,2496.4,2495.9,1.55515501]
[1642943014871,0.38685181,2496.4,2495.7,1.1549]
[1642943015072,0.56207906,2496.4,2495.7,1.1549]
[1642943015271,0.60133518,2496.4,2495.6,3.1473]
[1642943015473,23.43,2496.3,2495.6,3.1473]
[1642943015673,1.0,2496.2,2495.6,3.1473]
[1642943015916,1.38685181,2496.2,2495.6,3.1473]
[1642943016116,0.08685181,2496.1,2495.3,1.1288]
[1642943016317,0.31343,2496.1,2495.6,1.5411313]
[1642943016519,0.69791435,2496.1,2495.6,1.5411313]
[1642943016718,0.08685181,2496.0,2495.6,1.5411313]
[1642943017320,0.5092571,2496.1,2495.6,1.5411313]
[1642943017520,0.59610891,2496.1,2495.6,1.5411313]
[1642943018118,0.2092571,2496.1,2495.6,1.5411313]
[1642943019321,0.2092571,2496.1,2495.3,2.43453936]
[1642943020464,0.2092571,2496.1,2495.8,1.19295879]
[1642943021870,0.17522725,2496.4,2495.8,1.19295879]
[1642943022066,0.38447555,2496.4,2495.3,5.85373124]
[1642943022267,0.38447555,2496.4,2495.3,2.43453936]
[1642943022268,0.08685181,2496.3,2495.3,2.43453936]
[1642943023266,0.08685181,2496.3,2495.7,1.31579276]
[1642943023521,0.38685181,2496.3,2495.7,1.31579276]
[1642943023924,0.38685181,2496.3,2496.1,1.26180415]
[1642943024121,0.08685181,2496.3,2496.1,1.26180415]
[1642943024529,0.38685181,2496.3,2496.1,1.26180415]
[1642943024729,0.38685181,2496.3,2495.3,5.69578842]
[1642943024926,0.38685181,2496.3,2495.3,2.43453936]
[1642943025126,0.08685181,2496.3,2495.3,2.43453936]
[1642943025827,0.38685181,2496.3,2495.8,1.28653764]
[1642943026631,0.08685181,2496.3,2495.8,1.28653764]
[1642943027464,0.08685181,2496.3,2496.2,1.40196334]
[1642943027665,0.08685181,2496.3,2495.3,2.43453936]
[1642943028263,0.38685181,2496.3,2495.3,2.43453936]
[1642943028463,1.38685181,2496.3,2495.3,2.43453936]
[1642943028664,0.08685181,2496.2,2496.1,1.24157287]
[1642943029571,0.3,2496.3,2496.1,1.24157287]
[1642943029767,0.5092483,2496.4,2496.1,1.24157287]
[1642943029965,0.5092483,2496.4,2496.1,2.73345471]
[1642943030166,0.5092483,2496.4,2496.1,1.24157287]
[1642943031411,0.2092483,2496.4,2496.1,1.24157287]
[1642943033018,0.14865184,2497.0,2496.1,1.24025793]
[1642943033019,0.06180003,2497.0,2496.1,1.24025793]
[1642943033719,0.22789313,2496.8,2496.1,1.24025793]
[1642943034220,0.22789313,2496.8,2495.9,3.0817]
[1642943034519,0.17522725,2496.7,2495.9,3.0817]
[1642943034771,0.17522725,2496.7,2495.8,3.7486]
[1642943034772,0.012768,2496.6,2495.8,3.7486]
[1642943035066,0.17522725,2496.5,2495.8,3.7486]
[1642943035265,1.36745645,2496.4,2495.8,3.7486]
[1642943035464,23.43,2496.4,2495.8,3.7486]
[1642943035666,1.47522725,2496.3,2495.8,3.7486]
[1642943036066,4.07805952,2496.3,2495.8,3.7486]
[1642943036266,4.88229873,2496.3,2495.8,3.7486]
[1642943036664,23.43,2496.2,2495.8,3.7486]
[1642943037067,1.3,2496.1,2495.8,3.7486]
[1642943037271,4.47522725,2495.9,2495.8,3.7486]
[1642943037568,6.11205375,2495.9,2495.8,3.7486]
[1642943037970,8.86205375,2495.9,2495.8,3.7486]
[1642943038166,32.29205375,2495.9,2495.8,3.7486]
[1642943038620,29.54205375,2495.9,2495.8,3.7486]
[1642943040829,25.24205375,2495.9,2495.8,3.7486]
[1642943041130,1.77522725,2495.9,2495.8,3.7486]
[1642943041533,0.77522725,2495.9,2495.8,3.7486]
[1642943042561,1.77522725,2495.9,2495.8,3.7486]
[1642943042764,1.77522725,2495.9,2495.2,1.32896792]
[1642943043266,0.77522725,2495.9,2495.2,1.32896792]
[1642943045571,0.77522725,2495.9,2495.1,1.14423408]
[1642943046225,0.3,2495.9,2495.1,1.14423408]
[1642943046617,2.47262722,2496.3,2495.1,2.44461047]
[1642943046618,1.0,2496.2,2495.1,2.44461047]
[1642943046819,1.5086037,2496.3,2495.1,2.44461047]
[1642943047019,23.43,2496.2,2495.1,1.14423408]
[1642943047424,0.17522725,2496.1,2495.1,1.14423408]
[1642943048021,23.60522725,2496.1,2495.1,1.14423408]
[1642943048220,23.90522725,2496.1,2495.1,1.14423408]
[1642943048420,1.0,2496.0,2495.1,1.14423408]
[1642943048621,1.3,2496.0,2495.1,1.14423408]
[1642943049021,0.77522725,2496.1,2495.1,1.14423408]
[1642943049220,0.80940158,2496.1,2495.1,1.14423408]
[1642943049423,0.50940158,2496.1,2495.1,1.14423408]
[1642943049664,0.80940158,2496.1,2495.1,1.14423408]
[1642943049861,0.50940158,2496.1,2495.1,1.14423408]
[1642943050070,0.80940158,2496.1,2495.1,1.14423408]
[1642943050566,0.72522725,2496.1,2495.1,1.14423408]
[1642943051165,0.4592593,2496.1,2495.1,1.14423408]
[1642943051366,0.7592593,2496.1,2495.1,1.14423408]
[1642943051767,0.4592593,2496.1,2495.1,1.14423408]